fUSD/lending_fUSD_20240216
["ID","MTS","AMOUNT","RATE_DAILY","PERIOD"]
[314196001,1708065038728,-151.0,0.0003999,7]
[314196002,1708065038738,-233.563849,0.0003999,7]
[314196003,1708065038750,-151.0,0.0003999,7]
[314196004,1708065038759,-151.0,0.0003999,7]
[314196005,1708065038768,-151.0,0.0003999,7]
[314196006,1708065038778,-151.0,0.0003999,7]
[314196007,1708065038787,-150352.850705,0.0003999,5]
[314196008,1708065038797,-268.17562421,0.0004,14]
[314196009,1708065038806,-22053.51746822,0.0004,7]
[314196010,1708065038815,-4786.05932736,0.0004,2]
[314196011,1708065038826,-2002.88888887,0.0004,4]
[314196012,1708065038836,-875.43993378,0.0004,30]
[314196013,1708065038846,-194.74417261,0.0004,30]
[314196014,1708065038856,-157052.64039087,0.0004,30]
[314196015,1708065038865,-38731.34350162,0.0004,30]
[314196016,1708065038875,-422.6716118,0.0004,2]
[314196017,1708065038886,-1151.80844877,0.0004,7]
[314196018,1708065038895,-1030.58235564,0.0004,120]
[314196019,1708065038905,-151.0,0.0004,7]
[314196020,1708065038914,-151.0,0.0004,7]
[314196021,1708065038923,-151.0,0.0004,7]
[314196022,1708065038933,-164.774286,0.0004,120]
[314196023,1708065038942,-151.0,0.0004,7]
[314196024,1708065038951,-151.0,0.0004,7]
[314196025,1708065038961,-151.0,0.0004,7]
[314196026,1708065038970,-151.0,0.0004,7]
[314196027,1708065038979,-162.551701,0.0004,7]
[314196028,1708065038989,-151.0,0.0004,7]
[314196029,1708065038998,-151.0,0.0004,7]
[314196030,1708065039008,-171.145406,0.0004,7]
[314196031,1708065039017,-151.0,0.0004,7]
[314196032,1708065039027,-165.529889,0.0004,7]
[314196033,1708065039037,-151.0,0.0004,7]
[314196034,1708065039046,-151.0,0.0004,7]
[314196035,1708065039055,-286.22743,0.0004,7]
[314196036,1708065039065,-286.22743,0.0004,7]
[314196037,1708065039074,-151.0,0.0004,7]
[314196038,1708065039084,-151.0,0.0004,7]
[314196039,1708065039093,-151.0,0.0004,7]
[314196040,1708065039102,-185.976444,0.0004,7]
[314196041,1708065039112,-151.0,0.0004,7]
[314196042,1708065039122,-151.0,0.0004,7]
[314196043,1708065039132,-151.0,0.0004,7]
[314196044,1708065039313,-151.0,0.0004,7]
[314196045,1708065039323,-151.0,0.0004,7]
[314196046,1708065039332,-413.22960785,0.0004,2]
[314196047,1708065039341,-289.45,0.00040003,2]
[314196048,1708065039351,-196.09,0.00040052,2]
[314196049,1708065039360,-152.1,0.00040055,2]
[314196050,1708065039369,-150.0,0.00040058,2]
[314196051,1708065039379,-152.0,0.00040059,7]
[314196052,1708065039387,-436.29763754,0.00040116,9]
[314196053,1708065039397,-196.09,0.00040157,2]
[314196054,1708065039406,-152.0,0.00040196,7]
[314196055,1708065039415,-275.3,0.00040199,2]
[314196056,1708065039424,-289.45,0.00040202,2]
[314196057,1708065039433,-323.03,0.00040274,2]
[314196058,1708065039442,-412.02,0.00040274,2]
[314196059,1708065039451,-175.82,0.00040274,2]
[314196060,1708065039460,-422.54,0.00040274,2]
[314196061,1708065039469,-150.0,0.00040274,2]
[314196062,1708065039478,-351.76,0.00040274,2]
[314196063,1708065039487,-418.88,0.00040274,2]
[314196064,1708065039496,-150.0,0.00040274,2]
[314196065,1708065039504,-214.81,0.00040274,2]
[314196066,1708065039513,-150.0,0.00040274,2]
[314196067,1708065039522,-150.0,0.00040274,2]
[314196068,1708065039531,-412.02,0.00040274,2]
[314196069,1708065039540,-422.54,0.00040274,2]
[314196070,1708065039549,-150.0,0.00040274,2]
[314196071,1708065039562,-150.0,0.00040274,2]
[314196072,1708065039571,-150.0,0.00040274,2]
[314196073,1708065039580,-150.0,0.00040274,2]
[314196074,1708065039589,-343.44,0.00040274,2]
[314196075,1708065039598,-418.88,0.00040274,2]
[314196076,1708065039608,-422.54,0.00040274,2]
[314196077,1708065039617,-150.0,0.00040274,2]
[314196078,1708065039626,-150.0,0.00040274,2]
[314196079,1708065039636,-343.44,0.00040274,2]
[314196080,1708065039645,-412.02,0.00040274,2]
[314196081,1708065039654,-418.88,0.00040274,2]
[314196082,1708065039663,-150.0,0.00040274,2]
[314196083,1708065039671,-150.0,0.00040274,2]
[314196084,1708065039680,-150.0,0.00040274,2]
[314196085,1708065039690,-412.02,0.00040274,2]
[314196086,1708065039699,-150.0,0.00040274,2]
[314196087,1708065039708,-150.0,0.00040274,2]
[314196088,1708065039717,-150.0,0.00040274,2]
[314196089,1708065039726,-422.54,0.00040274,2]
[314196090,1708065039735,-418.88,0.00040274,2]
[314196091,1708065039745,-343.44,0.00040274,2]
[314196092,1708065039754,-150.0,0.00040274,2]
[314196093,1708065039762,-150.0,0.00040274,2]
[314196094,1708065039771,-412.02,0.00040274,2]
[314196095,1708065039780,-422.54,0.00040274,2]
[314196096,1708065039789,-150.0,0.00040274,2]
[314196097,1708065039798,-150.0,0.00040274,2]
[314196098,1708065039807,-150.0,0.00040274,2]
[314196099,1708065039816,-150.0,0.00040274,2]
[314196100,1708065039826,-418.88,0.00040274,2]
[314196101,1708065039835,-152.95,0.00040274,2]
[314196102,1708065039844,-412.02,0.00040274,2]
[314196103,1708065039854,-428.56,0.00040274,2]
[314196104,1708065039864,-150.0,0.00040274,2]
[314196105,1708065039873,-150.0,0.00040274,2]
[314196106,1708065039883,-418.88,0.00040274,2]
[314196107,1708065039892,-150.0,0.00040274,2]
[314196108,1708065039901,-422.54,0.00040274,2]
[314196109,1708065039910,-422.54,0.00040274,2]
[314196110,1708065039919,-150.0,0.00040274,2]
[314196111,1708065039928,-418.88,0.00040274,2]
[314196112,1708065039937,-150.0,0.00040274,2]
[314196113,1708065039947,-422.54,0.00040274,2]
[314196114,1708065039956,-418.88,0.00040274,2]
[314196115,1708065039966,-150.0,0.00040274,2]
[314196116,1708065039975,-418.13,0.00040274,2]
[314196117,1708065039985,-150.0,0.0004029,2]
[314196118,1708065039994,-364.0,0.00040296,2]
[314196119,1708065040003,-150.0,0.00040315,2]
[314196120,1708065040012,-150.0,0.00040322,2]
[314196121,1708065040021,-152.0,0.00040333,7]
[314196122,1708065040030,-150.0,0.0004035,2]
[314196123,1708065040040,-200.0,0.00040359,2]
[314196124,1708065040060,-75176.4253523,0.0004037,5]
[314196125,1708065040070,-8786.01215217,0.0004039,14]
[314196126,1708065040080,-289.45,0.00040401,2]
[314196127,1708065040090,-152.0,0.0004047,7]
[314196128,1708065040099,-152.306449,0.0004047,7]
[314196129,1708065040109,-151.0,0.0004047,7]
[314196130,1708065040118,-152.36,0.000405,4]
[314196131,1708065040128,-152.36,0.000405,4]
[314196132,1708065040138,-152.36,0.000405,4]
[314196133,1708065040147,-152.36,0.000405,4]
[314196134,1708065040157,-152.36,0.000405,4]
[314196135,1708065040166,-152.36,0.000405,4]
[314196136,1708065040176,-152.36,0.000405,4]
[314196137,1708065040186,-150.0,0.00040547,2]
[314196138,1708065040195,-3356.1666202,0.00040566,3]
[314196139,1708065040205,-166.60841822,0.00040568,2]
[314196140,1708065040214,-200.0,0.00040585,10]
[314196141,1708065040224,-289.45,0.000406,2]
[314196142,1708065040233,-152.0,0.00040607,7]
[314196143,1708065040242,-150.0,0.00040635,2]
[314196144,1708065040252,-150.0,0.00040641,2]
[314196145,1708065040262,-150.0,0.00040683,2]
[314196146,1708065040271,-543.02156664,0.00040717,2]
[314196147,1708065040281,-150.0,0.00040723,2]
[314196148,1708065040290,-152.0,0.00040744,7]
[314196149,1708065040299,-150.0,0.00040775,2]
[314196150,1708065040308,-8786.01215217,0.00040791,14]
[314196151,1708065040317,-151.218375,0.00040791,7]
[314196152,1708065040328,-152.1,0.00040796,2]
[314196153,1708065040337,-289.45,0.00040799,2]
[314196155,1708065040347,-150.0,0.00040805,2]
[314196156,1708065040356,-150.0,0.00040832,2]
[314196157,1708065040365,-436.29763754,0.00040853,10]
[314196159,1708065040375,-152.0,0.00040881,7]
[314196160,1708065040385,-152.0,0.00040881,7]
[314196161,1708065040395,-239.3075,0.00040889,2]
[314196162,1708065040404,-155.913238,0.0004089,7]
[314196163,1708065040413,-628.0,0.000409,15]
[314196164,1708065040422,-7850.16293657,0.000409,7]
[314196165,1708065040432,-151.0,0.00040937,7]
[314196166,1708065040441,-151.0,0.00040937,7]
[314196167,1708065040451,-171.506299,0.00040943,7]
[314196168,1708065040460,-527.0,0.00040973,30]
[314196169,1708065040469,-448.0,0.00040973,30]
[314196170,1708065040478,-1500.0,0.0004098,2]
[314196171,1708065040487,-150.0,0.00040984,2]
[314196172,1708065040496,-75176.4253523,0.0004099,6]
[314196173,1708065040505,-151.0,0.00040996,7]
[314196174,1708065040515,-286.22743,0.00040996,7]
[314196175,1708065040524,-286.22743,0.00040996,7]
[314196176,1708065040533,-151.0,0.00040996,7]
[314196177,1708065040543,-151.0,0.00040996,7]
[314196178,1708065040555,-151.0,0.00040996,7]
[314196179,1708065040564,-151.0,0.00040996,7]
[314196180,1708065040573,-151.0,0.00040996,7]
[314196181,1708065040583,-321.0,0.00040996,2]
[314196182,1708065040593,-454.0,0.00040996,2]
[314196183,1708065040602,-2835.0,0.00040996,2]
[314196184,1708065040611,-2289.0,0.00040996,2]
[314196185,1708065040621,-814.0,0.00040996,2]
[314196186,1708065040631,-1231.0,0.00040996,2]
[314196187,1708065040641,-289.45,0.00040998,2]
[314196188,1708065040651,-865.70447517,0.00041,120]
[314196189,1708065040660,-254.52701593,0.00041,2]
[314196190,1708065040669,-150.73451339,0.00041,2]
[314196191,1708065040678,-150.0,0.00041,2]
[314196192,1708065040687,-2000.0,0.00041,30]
[314196193,1708065040696,-1500.0,0.00041,30]
[314196194,1708065040705,-177.38,0.00041,2]
[314196195,1708065040715,-509.37361083,0.00041,2]
[314196196,1708065040725,-65958.77972609,0.00041,5]
[314196197,1708065040920,-1015.1999988,0.00041,5]
[314196198,1708065040935,-133026.02027511,0.00041,5]
[314196199,1708065040946,-151.0,0.00041,7]
[314196200,1708065040957,-286.22743,0.00041,7]
[314196201,1708065040969,-286.22743,0.00041,7]
[314196202,1708065040980,-151.0,0.00041,7]
[314196203,1708065040991,-151.0,0.00041,7]
[314196204,1708065041002,-151.0,0.00041,7]
[314196205,1708065041012,-151.0,0.00041,7]
[314196206,1708065041022,-151.0,0.00041,7]
[314196207,1708065041033,-158.38,0.00041,2]
[314196208,1708065041045,-150.0,0.00041006,2]
[314196209,1708065041056,-150.0,0.00041009,2]
[314196210,1708065041068,-1000.0,0.00041014,10]
[314196211,1708065041079,-1000.0,0.00041014,10]
[314196212,1708065041090,-152.0,0.00041018,7]
[314196213,1708065041101,-152.0,0.00041018,7]
[314196214,1708065041111,-150.0,0.00041018,2]
[314196215,1708065041122,-150.0,0.0004102,2]
[314196216,1708065041135,-800.0,0.00041059,15]
[314196217,1708065041146,-150.0,0.00041063,2]
[314196218,1708065041158,-150.0,0.00041065,2]
[314196219,1708065041168,-300.82627676,0.00041072,2]
[314196220,1708065041177,-12902.08819968,0.00041082,7]
[314196221,1708065041210,-23700.0,0.00041082,7]
[314196222,1708065041226,-458.42773034,0.00041082,7]
[314196223,1708065041240,-365.81761352,0.00041082,7]
[314196224,1708065041254,-635.96349285,0.00041082,7]
[314196225,1708065041279,-344.20099246,0.00041082,7]
[314196226,1708065041293,-814.59856868,0.00041082,7]
[314196227,1708065041306,-19817.88482359,0.00041082,7]
[314196228,1708065041386,-150.0,0.000386,2]
[314196230,1708065041400,-16137.44393118,0.00041082,7]
[314196231,1708065041412,-150.0,0.00041084,2]
[314196232,1708065041423,-150.0,0.00041084,2]
[314196233,1708065041435,-55555.0,0.00041092,5]
[314196234,1708065041447,-491.39275006,0.00041095,30]
[314196235,1708065041459,-377.61659121,0.00041095,30]
[314196236,1708065041471,-717.97,0.00041095,30]
[314196237,1708065041482,-218.82085833,0.00041095,30]
[314196239,1708065041494,-206.57831152,0.00041095,30]
[314196240,1708065041505,-500.0,0.00041095,30]
[314196241,1708065041517,-500.0,0.00041095,30]
[314196242,1708065041528,-500.0,0.00041095,2]
[314196243,1708065041539,-151.0,0.00041095,7]
[314196244,1708065041550,-600.0,0.00041095,30]
[314196245,1708065041564,-150.0,0.00041095,2]
[314196246,1708065041575,-626.02,0.00041095,7]
[314196247,1708065041588,-498.19831515,0.00041095,30]
[314196248,1708065041599,-894.62,0.00041095,30]
[314196249,1708065041611,-500.0,0.00041095,30]
[314196250,1708065041623,-500.0,0.00041095,30]
[314196251,1708065041635,-500.0,0.00041095,30]
[314196252,1708065041646,-500.0,0.00041095,30]
[314196253,1708065041663,-500.0,0.00041095,30]
[314196254,1708065041675,-500.0,0.00041095,30]
[314196255,1708065041685,-500.0,0.00041095,30]
[314196256,1708065041696,-500.0,0.00041095,30]
[314196257,1708065041707,-2918.12,0.00041095,30]
[314196258,1708065041718,-500.0,0.00041095,30]
[314196259,1708065041730,-500.0,0.00041095,30]
[314196260,1708065041741,-500.0,0.00041095,30]
[314196261,1708065041752,-500.0,0.00041095,30]
[314196262,1708065041764,-2097.56,0.00041095,30]
[314196263,1708065041775,-500.0,0.00041095,30]
[314196264,1708065041786,-500.0,0.00041095,30]
[314196265,1708065041797,-228.36377712,0.00041095,30]
[314196266,1708065041809,-500.0,0.00041095,30]
[314196267,1708065041821,-500.0,0.00041095,30]
[314196268,1708065041832,-500.0,0.00041095,30]
[314196269,1708065041843,-500.0,0.00041095,30]
[314196270,1708065041853,-500.0,0.00041095,30]
[314196271,1708065041864,-500.0,0.00041095,30]
[314196272,1708065041876,-500.0,0.00041095,30]
[314196273,1708065041889,-1355.1,0.00041095,7]
[314196274,1708065041900,-500.0,0.00041095,30]
[314196275,1708065041911,-500.0,0.00041095,30]
[314196276,1708065041922,-572.53,0.00041095,30]
[314196277,1708065041934,-416.56572289,0.00041095,30]
[314196278,1708065041944,-500.0,0.00041095,30]
[314196279,1708065041955,-200.0,0.00041095,7]
[314196280,1708065041966,-500.0,0.00041095,30]
[314196281,1708065041976,-253.75601668,0.00041095,30]
[314196282,1708065041987,-500.0,0.00041095,30]
[314196283,1708065041998,-300.0,0.00041095,30]
[314196284,1708065042008,-500.0,0.00041095,30]
[314196285,1708065042020,-500.0,0.00041095,30]
[314196286,1708065042031,-555.55942788,0.00041095,30]
[314196287,1708065042042,-198.0,0.00041095,7]
[314196288,1708065042052,-150.0,0.00041095,7]
[314196289,1708065042064,-159.0,0.00041095,7]
[314196290,1708065042074,-615.97,0.00041095,30]
[314196291,1708065042086,-500.0,0.00041095,30]
[314196292,1708065042097,-500.0,0.00041095,30]
[314196293,1708065042108,-500.0,0.00041095,30]
[314196294,1708065042118,-500.0,0.00041095,30]
[314196295,1708065042129,-500.0,0.00041095,30]
[314196296,1708065042141,-500.0,0.00041095,30]
[314196297,1708065042152,-500.0,0.00041095,30]
[314196298,1708065042162,-500.0,0.00041095,30]
[314196299,1708065042174,-500.0,0.00041095,30]
[314196300,1708065042184,-500.0,0.00041095,30]
[314196301,1708065042195,-500.0,0.00041095,30]
[314196302,1708065042206,-500.0,0.00041095,30]
[314196303,1708065042216,-500.0,0.00041095,30]
[314196304,1708065042227,-500.0,0.00041095,30]
[314196305,1708065042238,-500.0,0.00041095,30]
[314196306,1708065042249,-500.0,0.00041095,30]
[314196307,1708065042260,-500.0,0.00041095,30]
[314196308,1708065042271,-500.0,0.00041095,30]
[314196309,1708065042283,-500.0,0.00041096,2]
[314196310,1708065042294,-412.02,0.00041096,2]
[314196311,1708065042304,-846.44,0.00041096,2]
[314196312,1708065042315,-423.08,0.00041096,2]
[314196313,1708065042325,-150.0,0.00041096,2]
[314196314,1708065042336,-341.19,0.00041096,2]
[314196315,1708065042347,-422.54,0.00041096,2]
[314196316,1708065042358,-412.02,0.00041096,2]
[314196317,1708065042370,-412.02,0.00041096,2]
[314196318,1708065042379,-412.02,0.00041096,2]
[314196319,1708065042390,-412.02,0.00041096,2]
[314196320,1708065042400,-962.59,0.00041096,2]
[314196321,1708065042410,-129.61067632,0.00041096,2]
[314196322,1708065042424,-289.26932368,0.00041096,2]
[314196323,1708065042433,-412.02,0.00041096,2]
[314196324,1708065042443,-418.88,0.00041096,2]
[314196325,1708065042452,-412.02,0.00041096,2]
[314196326,1708065042475,-418.88,0.00041096,2]
[314196327,1708065042485,-306.62395535,0.00041096,2]
[314196328,1708065042498,-105.39604465,0.00041096,2]
[314196329,1708065042507,-418.88,0.00041096,2]
[314196330,1708065042517,-412.02,0.00041096,2]
[314196331,1708065042526,-635.38,0.00041096,2]
[314196332,1708065042536,-152.36,0.000411,4]
[314196333,1708065042545,-152.36,0.000411,4]
[314196334,1708065042556,-152.36,0.000411,4]
[314196335,1708065042567,-152.36,0.000411,4]
[314196336,1708065042577,-152.36,0.000411,4]
[314196337,1708065042586,-152.36,0.000411,4]
[314196338,1708065042596,-152.36,0.000411,4]
[314196341,1708065042826,-248.36,0.00041103,2]
[314196342,1708065042839,-150.0,0.0004112,2]
[314196343,1708065042849,-200.0,0.00041136,2]
[314196344,1708065042858,-152.0,0.00041155,7]
[314196345,1708065042867,-152.0,0.00041155,7]
[314196346,1708065042876,-200.0,0.00041157,20]
[314196347,1708065042887,-150.0,0.00041188,2]
[314196348,1708065042896,-2394.69791952,0.00041192,15]
[314196349,1708065042909,-728.05842579,0.00041192,15]
[314196350,1708065042920,-861.78488582,0.00041192,15]
[314196351,1708065042936,-4801.47092104,0.00041192,15]
[314196352,1708065042945,-289.45,0.00041197,2]
[314196353,1708065042955,-500.0,0.00041215,2]
[314196354,1708065042964,-200.0,0.00041254,15]
[314196355,1708065042974,-800.0,0.00041254,20]
[314196356,1708065042983,-200.0,0.00041254,20]
[314196357,1708065042991,-500.0,0.00041254,20]
[314196358,1708065043000,-256.92073501,0.00041279,2]
[314196359,1708065043010,-150.0,0.00041288,2]
[314196360,1708065043019,-152.0,0.00041292,7]
[314196361,1708065043028,-152.0,0.00041292,7]
[314196362,1708065043037,-296.03896849,0.00041295,2]
[314196363,1708065043049,-918.75282195,0.00041295,2]
[314196364,1708065043058,-214.0,0.000413,15]
[314196365,1708065043068,-150.0,0.0004132,2]
[314196366,1708065043076,-150.0,0.00041322,2]
[314196367,1708065043086,-500.0,0.00041334,2]
[314196368,1708065043095,-150.0,0.0004135,2]
[314196369,1708065043105,-200.0,0.00041352,20]
[314196370,1708065043114,-166.60841822,0.00041355,2]
[314196371,1708065043123,-1679.15907407,0.00041361,5]
[314196372,1708065043132,-150.0,0.00041363,2]
[314196373,1708065043141,-179.40063518,0.00041365,15]
[314196374,1708065043150,-717.97,0.00041369,30]
[314196375,1708065043159,-250.40932703,0.00041369,30]
[314196376,1708065043171,-249.59067297,0.00041369,30]
[314196377,1708065043180,-121.19219431,0.00041369,30]
[314196378,1708065043201,-315.4256326,0.00041369,30]
[314196379,1708065043215,-201.71273954,0.00041369,30]
[314196380,1708065043224,-600.0,0.00041369,30]
[314196381,1708065043233,-626.02,0.00041369,7]
[314196383,1708065043242,-894.62,0.00041369,30]
[314196384,1708065043251,-533.64,0.00041369,30]
[314196385,1708065043261,-500.0,0.00041369,30]
[314196386,1708065043270,-191.62,0.00041369,30]
[314196387,1708065043279,-500.0,0.00041369,30]
[314196388,1708065043289,-500.0,0.00041369,30]
[314196389,1708065043298,-558.89559513,0.00041369,30]
[314196390,1708065043308,-500.0,0.00041369,30]
[314196392,1708065043317,-2918.12,0.00041369,30]
[314196393,1708065043326,-500.0,0.00041369,30]
[314196394,1708065043336,-500.0,0.00041369,30]
[314196395,1708065043345,-500.0,0.00041369,30]
[314196396,1708065043354,-500.0,0.00041369,30]
[314196397,1708065043363,-127.62023892,0.00041369,30]
[314196398,1708065043375,-1969.93976108,0.00041369,30]
[314196399,1708065043386,-500.0,0.00041369,30]
[314196400,1708065043395,-500.0,0.00041369,30]
[314196401,1708065043404,-500.0,0.00041369,30]
[314196402,1708065043413,-500.0,0.00041369,30]
[314196403,1708065043422,-500.0,0.00041369,30]
[314196404,1708065043431,-500.0,0.00041369,30]
[314196405,1708065043440,-500.0,0.00041369,30]
[314196406,1708065043449,-1355.1,0.00041369,7]
[314196407,1708065043458,-500.0,0.00041369,30]
[314196408,1708065043467,-200.0,0.00041369,8]
[314196409,1708065043476,-500.0,0.00041369,30]
[314196410,1708065043486,-500.0,0.00041369,30]
[314196411,1708065043495,-300.0,0.00041369,30]
[314196412,1708065043505,-500.0,0.00041369,30]
[314196413,1708065043515,-615.97,0.00041369,30]
[314196414,1708065043525,-500.0,0.00041369,30]
[314196415,1708065043534,-500.0,0.00041369,30]
[314196416,1708065043543,-166.42584174,0.00041369,30]
[314196417,1708065043552,-500.0,0.00041369,30]
[314196418,1708065043566,-626.96500216,0.00041369,30]
[314196419,1708065043575,-153.60166245,0.00041369,30]
[314196420,1708065043584,-514.18308753,0.00041369,30]
[314196421,1708065043594,-11317.92274371,0.00041375,7]
[314196422,1708065043607,-323.58722177,0.00041375,7]
[314196423,1708065043618,-579.10397035,0.00041375,7]
[314196424,1708065043689,-9826.05986718,0.00041375,7]
[314196425,1708065043701,-356.99633322,0.00041375,7]
[314196426,1708065043712,-713.6500075,0.00041375,7]
[314196427,1708065043724,-13699.06143601,0.00041375,7]
[314196428,1708065043740,-241.5042882,0.00039562,2]
[314196429,1708065043749,-1371.10209366,0.00041375,7]
[314196430,1708065043760,-537.9296641,0.00041375,7]
[314196431,1708065043772,-312.14320097,0.00041375,7]
[314196432,1708065043787,-500.0,0.00041095,30]
[314196433,1708065043796,-41.05532265,0.00041375,7]
[314196434,1708065043844,-412.02,0.00040274,2]
[314196435,1708065043853,-500.0,0.00041095,30]
[314196436,1708065043863,-500.0,0.00041095,30]
[314196437,1708065043872,-500.0,0.00041095,30]
[314196438,1708065043883,-500.0,0.00041369,30]
[314196439,1708065043892,-500.0,0.00041369,30]
[314196440,1708065043901,-2877.44812901,0.00041375,7]
[314196441,1708065043912,-3077.6682786,0.00041375,7]
[314196442,1708065043923,-22433.42760846,0.00041375,7]
[314196443,1708065043934,-1515.01903168,0.00041375,7]
[314196444,1708065043946,-891.04363949,0.00041375,7]
[314196445,1708065043957,-293.33957425,0.00041375,7]
[314196446,1708065043968,-709.2393386,0.00041375,7]
[314196447,1708065043980,-1850.55207606,0.00041375,7]
[314196448,1708065043991,-2450.07581503,0.00041375,7]
[314196449,1708065044001,-2160.4470764,0.00041379,2]
[314196450,1708065044011,-163.362505,0.00041385,14]
[314196451,1708065044020,-151.0,0.00041385,10]
[314196452,1708065044029,-286.22743,0.00041385,14]
[314196453,1708065044038,-286.22743,0.00041385,14]
[314196454,1708065044047,-151.0,0.00041385,14]
[314196455,1708065044056,-192.837379,0.00041385,14]
[314196456,1708065044066,-185.791822,0.00041385,14]
[314196457,1708065044075,-151.0,0.00041385,14]
[314196458,1708065044084,-204.543572,0.00041385,14]
[314196459,1708065044093,-183.55788995,0.00041385,2]
[314196460,1708065044102,-150.0,0.00041386,2]
[314196461,1708065044112,-150.0,0.00041393,2]
[314196462,1708065044121,-2715.33486144,0.00041393,2]
[314196463,1708065044130,-527.0,0.00041395,30]
[314196464,1708065044139,-448.0,0.00041395,30]
[314196465,1708065044148,-289.45,0.00041396,2]
[314196466,1708065044157,-150.0,0.00041409,2]
[314196467,1708065044166,-150.0,0.00041417,2]
[314196468,1708065044175,-152.0,0.00041429,7]
[314196469,1708065044184,-152.0,0.00041429,7]
[314196470,1708065044193,-1500.0,0.00041434,2]
[314196471,1708065044202,-478.615,0.00041437,7]
[314196472,1708065044211,-800.0,0.00041449,20]
[314196473,1708065044220,-200.0,0.00041449,20]
[314196474,1708065044229,-500.0,0.00041449,20]
[314196475,1708065044238,-150.0,0.00041452,2]
[314196476,1708065044247,-500.0,0.00041453,2]
[314196477,1708065044256,-193.0,0.00041465,7]
[314196478,1708065044265,-150.0,0.00041465,7]
[314196479,1708065044274,-150.0,0.00041465,7]
[314196480,1708065044283,-5000.0,0.00041472,3]
[314196481,1708065044292,-1500.0,0.00041479,2]
[314196482,1708065044301,-151.021624,0.00041498,27]
[314196483,1708065044310,-257.394,0.00041527,30]
[314196484,1708065044320,-300.0,0.00041548,2]
[314196485,1708065044329,-177.38,0.00041548,2]
[314196486,1708065044338,-395.15,0.00041551,2]
[314196487,1708065044348,-152.0,0.00041566,7]
[314196488,1708065044358,-152.0,0.00041566,7]
[314196489,1708065044367,-500.0,0.00041572,2]
[314196490,1708065044377,-1000.0,0.00041575,2]
[314196491,1708065044387,-1000.0,0.00041575,2]
[314196492,1708065044397,-1000.0,0.00041575,2]
[314196493,1708065044407,-1000.0,0.00041575,2]
[314196494,1708065044416,-206.0436,0.00041575,2]
[314196495,1708065044426,-436.29763754,0.00041589,10]
[314196496,1708065044436,-306.14828674,0.0004159,2]
[314196497,1708065044445,-8786.01215217,0.00041593,15]
[314196498,1708065044453,-289.45,0.00041595,2]
[314196499,1708065044462,-10375.66697471,0.000416,7]
[314196500,1708065044471,-151.0,0.000416,14]
[314196501,1708065044481,-3356.1666202,0.00041641,3]
[314196502,1708065044490,-717.97,0.00041643,30]
[314196503,1708065044499,-500.0,0.00041643,30]
[314196504,1708065044508,-151.0,0.00041643,14]
[314196505,1708065044518,-600.0,0.00041643,30]
[314196506,1708065044527,-626.02,0.00041643,7]
[314196507,1708065044536,-894.62,0.00041643,30]
[314196508,1708065044545,-500.0,0.00041643,30]